bitfinex-derivatives/quotes_BTCF0:USTF0_20241218
["timestamp","ask_amount","ask_price","bid_price","bid_amount"]
[1734540449530,0.21934946,104100.0,104090.0,0.13679524]
[1734540449829,0.21934946,104100.0,104090.0,0.04813792]
[1734540450123,0.04814514,104100.0,104090.0,0.04813792]
[1734540450429,0.04914514,104100.0,104090.0,0.04813792]
[1734540450922,0.04914514,104100.0,104090.0,9.092e-05]
[1734540451128,0.79860246,104100.0,104090.0,9.092e-05]
[1734540451321,0.88725978,104100.0,104090.0,9.092e-05]
[1734540451522,0.49860246,104100.0,104090.0,9.092e-05]
[1734540451723,0.80110246,104100.0,104090.0,9.092e-05]
[1734540451922,0.88975978,104100.0,104090.0,9.092e-05]
[1734540452321,0.80110246,104100.0,104090.0,9.092e-05]
[1734540452524,0.50110246,104100.0,104090.0,9.092e-05]
[1734540452829,1.0604641,104100.0,104090.0,9.092e-05]
[1734540453021,0.048052,104080.0,104060.0,0.15188136]
[1734540453330,0.048061,104060.0,104040.0,0.47564774]
[1734540453626,0.048061,104060.0,104040.0,0.408867]
[1734540453627,0.048065,104050.0,104040.0,0.408867]
[1734540453833,0.048065,104050.0,104040.0,0.49752432]
[1734540454024,0.048065,104050.0,104040.0,0.49762071]
[1734540454421,0.545715,104070.0,104040.0,0.49762071]
[1734540454617,0.048064,104060.0,104050.0,0.13672132]
[1734540454831,0.048064,104060.0,104050.0,0.048064]
[1734540455319,0.66896365,104070.0,104060.0,0.048061]
[1734540456035,0.497658,104070.0,104060.0,0.048061]
[1734540456223,0.136858,104070.0,104060.0,0.048061]
[1734540457529,0.136858,104070.0,104050.0,0.0891]
[1734540457727,0.13671832,104060.0,104050.0,0.048064]
[1734540457926,0.048061,104060.0,104050.0,0.048064]
[1734540463227,0.048065,104050.0,104040.0,0.51351377]
[1734540464131,0.048065,104050.0,104040.0,0.53313352]
[1734540464332,0.048065,104050.0,104040.0,0.53413352]
[1734540465030,0.048065,104050.0,104040.0,0.53313352]
[1734540465230,0.048065,104050.0,104040.0,0.53413352]
[1734540466231,0.048065,104050.0,104040.0,0.01144577]
[1734540466433,0.49752232,104050.0,104040.0,0.00109639]
[1734540469431,0.79752232,104050.0,104040.0,3.9e-07]
[1734540469736,0.048079,104020.0,104010.0,0.01]
[1734540469927,0.13673632,104020.0,104010.0,0.01]
[1734540470127,0.13673632,104020.0,104010.0,0.058084]
[1734540470330,0.04818991,104020.0,104010.0,0.05818737]
[1734540471134,0.04818991,104020.0,104010.0,0.06820791]
[1734540471529,0.49764723,104020.0,104010.0,0.01010337]
[1734540474530,0.40898991,104020.0,104010.0,0.01010337]
[1734540475037,0.04818991,104020.0,104010.0,0.05818737]
[1734540475535,0.00011091,104020.0,104010.0,0.41898737]
[1734540475732,0.00011091,104020.0,104010.0,0.80764469]
[1734540476536,0.72288061,104040.0,104030.0,0.048075]
[1734540476735,0.04951037,104050.0,104040.0,0.04807]
[1734540477139,0.13816769,104050.0,104040.0,0.04807]
[1734540477439,0.13828336,104050.0,104040.0,0.04807]
[1734540477740,0.048075,104030.0,104020.0,2.084777]
[1734540478131,0.13673232,104030.0,104020.0,0.497277]
[1734540478440,0.13673232,104030.0,104010.0,0.37090337]
[1734540478633,0.048079,104020.0,104010.0,0.41898637]
[1734540479231,0.49753632,104020.0,104010.0,0.01010337]
[1734540479432,0.58253632,104020.0,104010.0,0.01010337]
[1734540480334,0.493879,104020.0,104010.0,0.01010337]
[1734540480729,0.493879,104020.0,104010.0,0.05868737]
[1734540481240,0.048079,104020.0,104010.0,0.05868737]
[1734540481835,0.408879,104020.0,104010.0,0.01010337]
[1734540482141,0.54198472,104020.0,104010.0,0.01010337]
[1734540482345,0.048084,104010.0,104000.0,0.1]
[1734540482643,0.54198972,104010.0,104000.0,0.1]
[1734540482844,0.84198972,104010.0,104000.0,0.1]
[1734540483534,0.54198972,104010.0,104000.0,0.1]
[1734540483845,0.408884,104010.0,104000.0,0.1]
[1734540484747,0.408884,104010.0,104000.0,0.1005]
[1734540485242,0.408884,104010.0,104000.0,0.148588]
[1734540485436,0.3608,104010.0,104000.0,0.28169372]
[1734540485740,0.048084,104010.0,104000.0,0.509388]
[1734540486139,0.14270396,104020.0,104000.0,0.509388]
[1734540486349,0.19078496,104020.0,104010.0,0.048084]
[1734540486741,0.048081,104020.0,104010.0,0.048084]
[1734540486936,0.3608,104030.0,104020.0,0.048079]
[1734540487130,0.36208161,104040.0,104030.0,0.048075]
[1734540487334,0.36208161,104040.0,104010.0,0.63568872]
[1734540487335,0.048075,104030.0,104010.0,0.3608]
[1734540487535,0.048079,104020.0,104010.0,0.495181]
[1734540488238,0.048079,104020.0,104010.0,0.4471]
[1734540488545,0.138979,104020.0,104010.0,0.3608]
[1734540489243,0.228979,104020.0,104010.0,0.408884]
[1734540489446,0.048084,104010.0,104000.0,0.1005]
[1734540489744,0.408884,104010.0,104000.0,0.1005]
[1734540490343,0.408884,104010.0,104000.0,0.148588]
[1734540490942,0.048084,104010.0,104000.0,0.148588]
[1734540491548,0.54198972,104010.0,104000.0,0.1005]
[1734540491748,0.54198972,104010.0,104000.0,0.1]
[1734540492550,0.62818972,104010.0,104000.0,0.1]
[1734540493748,0.77089368,104010.0,104000.0,0.1]
[1734540494640,0.55158796,104010.0,104000.0,0.1]
[1734540494841,0.19078796,104010.0,104000.0,0.148088]
[1734540495337,0.55158796,104010.0,104000.0,0.1]
[1734540495851,0.19078796,104010.0,104000.0,0.1]
[1734540496350,0.19078796,104010.0,104000.0,0.148088]
[1734540496749,0.048084,104010.0,104000.0,0.148088]
[1734540498152,0.54198972,104010.0,104000.0,0.1]
[1734540498450,0.62868972,104010.0,104000.0,0.1]
[1734540499460,0.79999537,104010.0,104000.0,0.1]
[1734540499644,0.58018965,104010.0,104000.0,0.1]
[1734540499841,0.71329537,104010.0,104000.0,0.1]
[1734540500552,0.85580729,104010.0,104000.0,0.1]
[1734540501358,0.71329537,104010.0,104000.0,0.1]
[1734540501556,0.71329537,104010.0,104000.0,1e-06]
[1734540503345,1.01329537,104010.0,104000.0,1e-06]
[1734540503648,1.01340174,104010.0,104000.0,1e-06]
[1734540504156,0.048093,103990.0,103980.0,0.0006148]
[1734540504342,0.90279872,103990.0,103980.0,8e-07]
[1734540504542,1.08409872,103990.0,103980.0,8e-07]
[1734540504749,1.08409872,103990.0,103970.0,0.01]
[1734540504948,0.54200372,103980.0,103970.0,0.01]
[1734540505456,0.408898,103980.0,103970.0,0.01]
[1734540505651,0.408898,103980.0,103970.0,0.058102]
[1734540505853,0.408898,103980.0,103970.0,0.242202]
[1734540506154,0.048098,103980.0,103970.0,0.603002]
[1734540506460,0.16303359,103980.0,103970.0,0.603002]
[1734540507048,0.19051549,103990.0,103980.0,0.048098]
[1734540507255,0.19051549,103990.0,103980.0,0.408898]
[1734540507650,0.048096,103990.0,103980.0,0.54200372]
[1734540507848,0.19051049,104000.0,103990.0,0.048093]
[1734540508154,0.19051049,104000.0,103990.0,0.408893]
[1734540508741,0.048091,104000.0,103990.0,0.408893]
[1734540508939,0.14396891,104010.0,103990.0,0.408893]
[1734540509155,0.19205491,104010.0,104000.0,0.501688]
[1734540509355,0.19205491,104010.0,104000.0,0.231988]
[1734540510050,0.19405491,104010.0,104000.0,0.592788]
[1734540510257,0.05163542,104010.0,104000.0,0.592788]
[1734540511556,0.04963542,104010.0,104000.0,0.593788]
[1734540512855,0.00154942,104010.0,104000.0,0.72689372]
[1734540513853,0.00010637,104010.0,104000.0,1.02689372]
[1734540514155,0.14241949,104020.0,104010.0,0.048084]
[1734540514457,0.14241949,104020.0,104010.0,0.54198972]
[1734540514658,0.14241949,104020.0,104010.0,0.84198972]
[1734540514860,0.0005,104030.0,104020.0,0.048079]
[1734540515059,0.0005,104030.0,104020.0,0.40898855]
[1734540515451,0.0005,104030.0,104020.0,0.54209427]
[1734540515759,0.19078897,104040.0,104020.0,0.54209427]
[1734540515946,0.19078897,104040.0,104030.0,0.408875]
[1734540516146,0.048075,104030.0,104020.0,0.40898555]
[1734540516451,0.050075,104030.0,104020.0,0.40898855]
[1734540516849,0.050575,104030.0,104020.0,0.40898855]
[1734540517249,0.051575,104030.0,104020.0,0.40898855]
[1734540517764,0.049575,104030.0,104020.0,0.40898855]
[1734540517963,0.54348072,104030.0,104020.0,0.00010955]
[1734540518163,0.72338072,104030.0,104020.0,0.00010955]
[1734540518458,0.72538072,104030.0,104020.0,0.00010955]
[1734540519464,0.592275,104030.0,104020.0,0.00010955]
[1734540519757,0.503475,104030.0,104020.0,0.00010955]
[1734540520057,0.63658072,104030.0,104020.0,0.00010955]
[1734540520858,0.503475,104030.0,104020.0,0.00010955]
[1734540521550,0.63658072,104030.0,104020.0,5.5e-07]
[1734540521858,0.63658072,104030.0,103990.0,0.06851486]
[1734540521859,0.048088,104000.0,103990.0,0.42931486]
[1734540522058,0.048088,104000.0,103990.0,0.06851486]
[1734540522761,0.048088,104000.0,103990.0,0.06860997]
[1734540523061,0.049088,104000.0,103990.0,0.43040997]
[1734540523653,0.049088,104000.0,103990.0,0.44057171]
[1734540525549,0.049088,104000.0,103990.0,0.57367743]
[1734540525861,0.001,104000.0,103990.0,0.87367743]
[1734540526264,0.001,104000.0,103990.0,2.37367743]
[1734540526664,0.04808,104020.0,104000.0,0.048087]
[1734540526865,0.04808,104020.0,104010.0,0.048084]
[1734540527364,0.04808,104020.0,104010.0,0.408884]
[1734540527749,0.04808,104020.0,104010.0,0.54198972]
[1734540528563,0.04808,104020.0,104010.0,0.408884]
[1734540529760,0.68504783,104040.0,104010.0,0.408884]
[1734540529961,0.048076,104030.0,104020.0,0.408876]
[1734540530164,0.04818285,104040.0,104020.0,0.54198172]
[1734540530357,0.04818285,104040.0,104030.0,0.048075]
[1734540530865,0.04868285,104040.0,104030.0,0.048075]
[1734540531065,0.04968285,104040.0,104030.0,0.048075]
[1734540531464,0.05168285,104040.0,104030.0,0.048075]
[1734540531769,0.05118285,104040.0,104030.0,0.048075]
[1734540532269,0.048075,104030.0,104020.0,0.408876]
[1734540533470,0.049075,104030.0,104020.0,0.41883676]
[1734540533767,0.049075,104030.0,104020.0,0.05803676]
[1734540534171,0.051075,104030.0,104020.0,0.05803676]
[1734540540162,0.051075,104030.0,104020.0,0.41883676]
[1734540541878,0.051075,104030.0,104010.0,0.29648842]
[1734540541879,0.048079,104020.0,104010.0,0.29648842]
[1734540542572,0.048079,104020.0,104010.0,0.30628528]
[1734540542777,0.678877,104030.0,104020.0,0.048079]
[1734540542971,0.050077,104030.0,104020.0,0.408879]
[1734540543376,0.048077,104030.0,104020.0,0.408879]
[1734540543674,0.048077,104030.0,104020.0,1.548079]
[1734540543877,0.048077,104030.0,104020.0,0.048079]
[1734540543878,0.140377,104030.0,104020.0,0.048079]
[1734540544070,0.142377,104030.0,104020.0,0.048079]
[1734540544571,0.142377,104030.0,104020.0,0.408879]
[1734540545069,0.142377,104030.0,104020.0,0.048079]
[1734540545375,0.048079,104020.0,104000.0,0.63839727]
[1734540545581,0.048084,104010.0,104000.0,0.69585628]
[1734540545765,0.408884,104010.0,104000.0,0.33505628]
[1734540546566,0.048084,104010.0,104000.0,0.33505628]
[1734540546879,0.048084,104010.0,104000.0,0.69585628]
[1734540547080,0.048084,104010.0,104000.0,0.05823412]
[1734540547378,0.048084,104010.0,104000.0,0.05923412]
[1734540548173,0.048084,104010.0,104000.0,0.42003412]
[1734540548575,0.048084,104010.0,104000.0,0.3618]
[1734540548877,0.408884,104010.0,104000.0,0.001]
[1734540549380,0.408884,104010.0,103990.0,0.29908262]
[1734540549381,0.54198972,104010.0,103990.0,0.23056676]
[1734540549581,0.54199372,104000.0,103990.0,0.23056676]
[1734540549776,0.54199372,104000.0,103990.0,9.511e-05]
[1734540550773,0.54199372,104000.0,103990.0,0.00159511]
[1734540551082,0.68574689,104000.0,103990.0,0.00159511]
[1734540551384,0.55264117,104000.0,103990.0,0.00159511]
[1734540551583,0.55264117,104000.0,103990.0,0.04968811]
[1734540551787,0.19184117,104000.0,103990.0,0.04968811]
[1734540552581,0.049088,104000.0,103990.0,1.54968811]
[1734540552883,0.001,104000.0,103990.0,2.34359383]
[1734540553286,0.001,104000.0,103990.0,2.43259383]
[1734540554183,0.28362917,104030.0,104000.0,0.096172]
[1734540554383,0.19082917,104030.0,104020.0,0.048079]
[1734540555289,0.049076,104030.0,104020.0,0.22036403]
[1734540555488,0.049076,104030.0,104020.0,0.58116403]
[1734540556085,0.051076,104030.0,104020.0,0.58116403]
[1734540556486,0.63061185,104040.0,104020.0,0.59051289]
[1734540556682,0.64074605,104040.0,104020.0,0.59051289]
[1734540556883,0.048076,104030.0,104020.0,0.61146627]
[1734540557491,0.049076,104030.0,104020.0,0.61146627]
[1734540558180,0.54298172,104030.0,104020.0,0.20258727]
[1734540558379,0.409876,104030.0,104020.0,0.20258727]
[1734540558582,0.77085408,104040.0,104020.0,0.20258727]
[1734540558778,0.048076,104030.0,104020.0,0.25066627]
[1734540559084,0.048076,104030.0,104020.0,0.07838124]
[1734540559385,0.91360725,104040.0,104020.0,0.00934886]
[1734540559590,0.40898122,104030.0,104020.0,0.00934886]
[1734540559888,0.40898122,104030.0,104020.0,0.05742586]
[1734540559889,0.050076,104030.0,104020.0,0.05742586]
[1734540560091,0.77850153,104040.0,104020.0,0.05742586]
[1734540560388,0.048076,104030.0,104020.0,0.05742586]
[1734540560784,0.04819117,104030.0,104020.0,0.05742586]
[1734540561180,0.41099117,104030.0,104020.0,0.00934886]
[1734540561382,0.54409689,104030.0,104020.0,0.00934886]
[1734540561885,0.54509689,104030.0,104020.0,0.00934886]
[1734540562587,0.68785006,104030.0,104020.0,0.00934886]
[1734540564392,0.048079,104020.0,104010.0,0.048081]
[1734540564784,0.048079,104020.0,104010.0,0.408881]
[1734540566283,0.048079,104020.0,104010.0,0.409881]
[1734540566584,0.13364355,104020.0,104010.0,0.409881]
[1734540567690,0.24779351,104020.0,104010.0,1.909881]
[1734540567894,0.24779351,104020.0,104010.0,0.409881]
[1734540568795,0.74169923,104020.0,104010.0,0.001]
[1734540569792,0.60859351,104020.0,104010.0,0.001]
[1734540570492,0.55163217,104020.0,104010.0,0.001]
[1734540570887,0.55163217,104020.0,104010.0,0.049084]
[1734540571086,0.19083217,104020.0,104010.0,0.049084]
[1734540571389,0.55163217,104020.0,104010.0,0.001]
[1734540572693,0.5613312,104020.0,104010.0,0.001]
[1734540576198,0.2005312,104020.0,104010.0,0.049084]
[1734540576403,0.19083217,104020.0,104010.0,0.049084]
[1734540577290,0.19083217,104020.0,104010.0,0.001]
[1734540577685,0.19083217,104020.0,104000.0,0.17228503]
[1734540577686,0.048084,104010.0,104000.0,0.17228503]
[1734540577894,0.71608972,104010.0,104000.0,0.17228503]
[1734540578596,0.048088,104000.0,103990.0,0.689032]
[1734540578989,0.048088,104000.0,103990.0,0.689532]
[1734540579497,0.048088,104000.0,103990.0,0.601732]
[1734540579700,0.74198927,104000.0,103990.0,0.17288014]
[1734540579898,0.74298927,104000.0,103990.0,0.17638014]
[1734540580699,0.74298927,104000.0,103990.0,0.17838014]
[1734540580991,0.83458927,104000.0,103990.0,0.17888014]
[1734540581193,0.83458927,104000.0,103990.0,0.00659511]
[1734540581194,0.77734689,104000.0,103990.0,0.00659511]
[1734540581996,0.77734689,104000.0,103990.0,0.00609511]
[1734540582400,0.80549711,104000.0,103990.0,0.00609511]
[1734540582996,0.81525716,104000.0,103990.0,0.00659511]
[1734540583502,0.81725716,104000.0,103990.0,0.00059511]
[1734540583992,0.81725716,104000.0,103990.0,9.511e-05]
[1734540585000,0.81725716,104000.0,103990.0,0.00059511]
[1734540586003,0.95992323,104000.0,103990.0,9.511e-05]
[1734540587197,0.81725716,104000.0,103990.0,9.511e-05]
[1734540588796,0.68415144,104000.0,103990.0,9.511e-05]
[1734540589401,0.78913378,104000.0,103990.0,9.511e-05]
[1734540589998,0.78813378,104000.0,103990.0,1.1e-07]
[1734540590200,0.78913378,104000.0,103990.0,1.1e-07]
[1734540590400,1.2222395,104000.0,103990.0,1.1e-07]
[1734540590599,1.08913378,104000.0,103990.0,1.1e-07]
[1734540590902,1.06057579,104000.0,103990.0,1.1e-07]
[1734540591301,0.048093,103990.0,103980.0,1.1e-07]
[1734540591502,0.54199872,103990.0,103980.0,1.1e-07]
[1734540592001,0.048098,103980.0,103970.0,0.01]
[1734540592196,0.63220372,103980.0,103970.0,0.01]
[1734540592901,0.499098,103980.0,103970.0,0.01]
[1734540593106,0.69890791,103980.0,103970.0,0.01]
[1734540593908,0.69890791,103980.0,103970.0,0.0105]
[1734540594307,0.58473082,103980.0,103970.0,0.0105]
[1734540594900,0.58473082,103980.0,103970.0,0.3708]
[1734540594901,0.13373082,103980.0,103970.0,0.3708]
[1734540595409,0.048098,103980.0,103970.0,0.3708]
[1734540595702,0.048098,103980.0,103970.0,0.01]
[1734540595907,0.048098,103980.0,103970.0,0.0105]
[1734540597007,0.048098,103980.0,103970.0,0.01]
[1734540598009,0.24790791,103980.0,103970.0,0.0105]
[1734540599000,0.24790791,103980.0,103970.0,0.01]
[1734540599209,0.16227509,103980.0,103970.0,0.01]
[1734540599508,0.251082,103980.0,103970.0,0.01]
[1734540599812,0.70068891,103980.0,103970.0,0.01]
[1734540600111,0.70068891,103980.0,103970.0,0.0105]
[1734540600410,0.611882,103980.0,103970.0,0.0105]
[1734540601002,0.70068891,103980.0,103970.0,0.0105]
[1734540601208,0.72923318,103980.0,103970.0,0.0105]
[1734540602010,0.64042627,103980.0,103970.0,0.01]
[1734540603009,0.14272136,103980.0,103970.0,0.50770891]
[1734540603212,0.17090339,103990.0,103980.0,0.048098]
[1734540603509,0.19940961,104000.0,103980.0,0.58651182]
[1734540603708,0.27742575,104010.0,104000.0,0.048088]
[1734540603709,0.24893866,104010.0,104000.0,0.048088]
[1734540604013,0.24893866,104010.0,104000.0,0.49769491]
[1734540604712,0.08717476,104010.0,104000.0,0.66997994]
[1734540604915,0.08573171,104010.0,104000.0,0.96997994]
[1734540605107,0.08673171,104010.0,104000.0,0.96997994]
[1734540605606,0.13681571,104010.0,104000.0,0.66997994]
[1734540606009,0.13481571,104010.0,104000.0,0.58117303]
[1734540606317,0.049084,104010.0,104000.0,0.64285965]
[1734540606913,0.0005,104020.0,104010.0,0.048084]
[1734540606914,0.048081,104020.0,104010.0,0.048084]
[1734540607227,0.048081,104020.0,104010.0,0.408884]
[1734540607513,0.048081,104020.0,104000.0,0.80445865]
[1734540607514,0.048084,104010.0,104000.0,0.80445865]
[1734540607713,0.048084,104010.0,104000.0,0.68767165]
[1734540608106,0.048084,104010.0,104000.0,0.68167165]
[1734540608603,0.048084,104010.0,104000.0,0.4517]
[1734540609112,0.048084,104010.0,104000.0,0.46142864]
[1734540610311,0.048084,104010.0,104000.0,0.00972864]
[1734540610514,0.048084,104010.0,103990.0,0.45025045]
[1734540610515,0.048084,104010.0,103990.0,0.81105045]
[1734540610814,0.048088,104000.0,103990.0,0.81105045]
[1734540612209,0.048088,104000.0,103990.0,0.5810788]
[1734540612404,0.048088,104000.0,103990.0,0.5820788]
[1734540612621,0.048085,104010.0,104000.0,0.048085]
[1734540612802,0.16288995,104020.0,104010.0,0.048084]
[1734540613005,0.16238995,104020.0,104010.0,0.408884]
[1734540613923,0.048581,104020.0,104010.0,0.408884]
[1734540614806,0.049581,104020.0,104010.0,0.408884]
[1734540615114,0.003,104020.0,104010.0,0.408884]
[1734540615308,0.003,104020.0,104010.0,0.54197716]
[1734540615505,0.003,104020.0,104010.0,0.69527716]
[1734540615916,0.0035,104020.0,104010.0,0.69527716]
[1734540616215,0.051579,104020.0,104010.0,0.562184]
[1734540616517,0.051579,104020.0,104010.0,0.7343728]
[1734540617021,0.051079,104020.0,104010.0,0.7343728]
[1734540617919,0.051579,104020.0,104010.0,0.562184]
[1734540618915,0.051079,104020.0,104010.0,0.562184]
[1734540619422,0.051079,104020.0,104010.0,0.57179118]
[1734540619910,0.051579,104020.0,104010.0,0.57179118]
[1734540621014,0.051079,104020.0,104010.0,0.57179118]
[1734540623218,0.003,104020.0,104010.0,0.57179118]
[1734540623417,0.08580797,104030.0,104020.0,0.048079]
[1734540623611,0.08580797,104030.0,104020.0,0.54197216]
[1734540623922,0.08630797,104030.0,104020.0,0.54197216]
[1734540624218,0.08630797,104030.0,104020.0,0.84197216]
[1734540624422,0.08730797,104030.0,104020.0,0.84197216]
[1734540624820,0.08930797,104030.0,104020.0,0.84197216]
[1734540625021,0.08880797,104030.0,104020.0,0.84197216]
[1734540625615,0.00311517,104030.0,104020.0,0.84197216]
[1734540626117,0.00361517,104030.0,104020.0,0.84197216]
[1734540626319,0.00361517,104030.0,104020.0,0.79755243]
[1734540627925,0.00211517,104030.0,104020.0,0.79755243]
[1734540628427,0.00111517,104030.0,104020.0,0.79755243]
[1734540629219,0.00111517,104030.0,104020.0,0.49755243]
[1734540629420,0.00111517,104030.0,104020.0,0.408879]
[1734540629716,0.00111517,104030.0,104020.0,0.66974123]
[1734540630721,0.00111517,104030.0,104020.0,0.408879]
[1734540630914,0.17171517,104030.0,104020.0,0.408879]
[1734540631633,0.17171517,104030.0,104020.0,0.66974123]
[1734540632522,0.08721517,104030.0,104020.0,0.66974123]
[1734540633824,0.2239636,104030.0,104020.0,0.2202678]
[1734540634026,0.22098297,104030.0,104020.0,0.27805065]
[1734540634531,0.22098297,104030.0,104020.0,0.22997165]
[1734540634725,0.3096564,104030.0,104020.0,0.27805065]
[1734540635029,0.3096564,104030.0,104020.0,0.09187165]
[1734540635225,0.6704564,104030.0,104020.0,0.09187165]
[1734540635431,0.048079,104020.0,104010.0,0.70195025]
[1734540635630,0.22815243,104020.0,104010.0,0.70195025]
[1734540635829,0.31275243,104020.0,104010.0,0.67328946]
[1734540636327,0.67355243,104020.0,104010.0,0.26440746]
[1734540636518,0.31275243,104020.0,104010.0,0.26440746]
[1734540636724,0.31275243,104020.0,104010.0,0.31349146]
[1734540636922,0.42706138,104020.0,104010.0,0.04920924]
[1734540637733,0.78786138,104020.0,104010.0,0.04920924]
[1734540638433,0.81660078,104020.0,104010.0,0.04920924]
[1734540638926,0.36712735,104020.0,104010.0,0.05020924]
[1734540639131,0.31904835,104020.0,104010.0,0.49968267]
[1734540639318,0.23444835,104020.0,104010.0,0.49968267]
[1734540639528,0.23544835,104020.0,104010.0,0.49868267]
[1734540639823,0.23644835,104020.0,104010.0,0.49768267]
[1734540640021,0.28452735,104020.0,104010.0,0.40900924]
[1734540640421,0.28352735,104020.0,104010.0,0.41000924]
[1734540640627,0.28252735,104020.0,104010.0,0.41000924]
[1734540640919,0.22529217,104020.0,104010.0,0.58341981]
[1734540641733,0.6747656,104020.0,104010.0,0.22261981]
[1734540642028,0.70336999,104020.0,104010.0,0.05020924]
[1734540642723,0.70336999,104020.0,104010.0,0.00212524]
[1734540642919,0.048084,104010.0,104000.0,0.18241057]
[1734540643124,0.048088,104000.0,103990.0,0.33556028]
[1734540643324,0.22646143,104000.0,103990.0,0.22107194]
[1734540643519,0.22646143,104000.0,103990.0,0.17297994]
[1734540643937,0.22646143,104000.0,103990.0,0.17308589]
[1734540644131,0.22646143,104000.0,103990.0,0.17258589]
[1734540644632,0.137788,104000.0,103990.0,0.22067889]
[1734540644827,0.25227765,104000.0,103990.0,0.40899895]
[1734540645027,0.25227765,104000.0,103990.0,0.40949895]
[1734540645333,0.25227765,104000.0,103990.0,0.04869895]
[1734540645727,0.25227765,104000.0,103990.0,0.41149895]
[1734540645927,0.25227765,104000.0,103990.0,0.41549895]
[1734540646128,0.25227765,104000.0,103990.0,0.05419895]
[1734540646324,0.11448965,104000.0,103990.0,0.50367238]
[1734540646532,0.11448965,104000.0,103990.0,0.51367238]
[1734540646727,0.11448965,104000.0,103990.0,0.60107238]
[1734540647133,0.08582059,104000.0,103990.0,0.60157238]
[1734540648040,0.08582059,104000.0,103990.0,0.60107238]
[1734540648236,5.9e-07,104000.0,103990.0,0.60107238]
[1734540648429,0.10160649,104010.0,103990.0,1.34543238]
[1734540648734,0.1874297,104010.0,104000.0,0.49756143]
[1734540648935,0.1874297,104010.0,104000.0,1.99756143]
[1734540649132,0.1874297,104010.0,104000.0,2.29756143]
[1734540649938,0.00011517,104030.0,104020.0,0.048079]
[1734540650136,0.00011517,104030.0,104020.0,0.769679]
[1734540650541,0.04819017,104030.0,104020.0,0.769679]
[1734540651232,0.00011517,104030.0,104020.0,0.85835243]
[1734540651631,0.00011517,104030.0,104020.0,0.94815243]
[1734540651836,0.00111517,104030.0,104020.0,0.94815243]
[1734540652336,0.00111517,104030.0,104020.0,1.03935243]
[1734540652542,0.00311517,104030.0,104020.0,1.33935243]
[1734540653444,0.14304835,104050.0,104040.0,0.04807]
[1734540653648,0.14304835,104050.0,104040.0,0.49754343]
[1734540654039,0.14354835,104050.0,104040.0,0.49754343]
[1734540654439,0.00057489,104050.0,104040.0,0.49754343]
[1734540655038,7.489e-05,104050.0,104040.0,0.49754343]
[1734540655246,7.489e-05,104050.0,104040.0,0.40887]
[1734540655544,0.04813989,104050.0,104040.0,0.40887]
[1734540656139,0.04963989,104050.0,104040.0,0.40887]
[1734540656439,0.00157489,104050.0,104040.0,0.40887]
[1734540657050,0.00107489,104050.0,104040.0,0.40887]
[1734540657244,0.00107489,104050.0,104040.0,0.76967]
[1734540657939,0.00107489,104050.0,104040.0,0.77934141]
[1734540658139,0.00157489,104050.0,104040.0,0.86801484]
[1734540659050,0.00107489,104050.0,104040.0,0.86801484]
[1734540659448,0.00107489,104050.0,104040.0,0.77934141]
[1734540660147,0.00157489,104050.0,104040.0,0.77934141]
[1734540661052,0.00107489,104050.0,104040.0,0.77934141]
[1734540662051,0.00157489,104050.0,104040.0,0.77934141]
[1734540662948,0.00157489,104050.0,104040.0,0.86801484]
[1734540663152,0.00107489,104050.0,104040.0,0.86801484]
[1734540664153,0.00157489,104050.0,104040.0,0.86801484]
[1734540665553,0.00157489,104050.0,104040.0,0.95471484]
[1734540665755,0.00057489,104050.0,104040.0,0.95571484]
[1734540667045,7.489e-05,104050.0,104040.0,0.95571484]
[1734540667248,7.489e-05,104050.0,104040.0,1.0455104]
[1734540667638,7.489e-05,104050.0,104040.0,2.5455104]
[1734540669249,7.489e-05,104050.0,104040.0,2.56440351]
[1734540670652,7.489e-05,104050.0,104040.0,2.47573008]
[1734540670848,7.489e-05,104050.0,104040.0,0.97573008]
[1734540671953,7.489e-05,104050.0,104040.0,0.88903008]
[1734540672259,0.13681332,104050.0,104040.0,0.43955665]
[1734540672554,7.489e-05,104050.0,104040.0,0.52823008]
[1734540672849,7.489e-05,104050.0,104040.0,0.97190351]
[1734540673757,7.489e-05,104050.0,104040.0,0.88323008]
[1734540674760,7.489e-05,104050.0,104040.0,0.97190351]
[1734540675258,7.489e-05,104050.0,104040.0,0.88323008]
[1734540675460,7.489e-05,104050.0,104040.0,0.97190351]
[1734540676966,0.2606,104070.0,104060.0,0.048061]
[1734540677265,0.2601,104070.0,104060.0,0.408861]
[1734540677968,0.26017655,104070.0,104060.0,0.408861]
[1734540678264,0.26067655,104070.0,104060.0,0.408861]
[1734540678454,0.26167655,104070.0,104060.0,0.408861]
[1734540679058,0.17357655,104070.0,104060.0,0.85833443]
[1734540679967,0.17357655,104070.0,104060.0,0.769661]
[1734540680260,0.17407655,104070.0,104060.0,0.769661]
[1734540681052,0.31030598,104070.0,104060.0,0.048061]
[1734540681266,0.31030598,104070.0,104050.0,0.3608]
[1734540681267,0.048061,104060.0,104050.0,0.408861]
[1734540681566,0.132761,104060.0,104050.0,0.408861]
[1734540681863,0.22143443,104060.0,104050.0,0.048061]
[1734540682063,0.132761,104060.0,104050.0,0.048061]
[1734540682755,0.133761,104060.0,104050.0,0.048061]
[1734540683557,0.72628278,104060.0,104050.0,0.048061]
[1734540683761,1.02628278,104060.0,104040.0,0.36092213]
[1734540684068,0.048065,104050.0,104040.0,0.04819113]
[1734540684955,0.19111335,104050.0,104040.0,0.04819113]
[1734540685155,0.14304835,104050.0,104040.0,0.49866456]
[1734540685764,0.14304835,104050.0,104040.0,0.49966456]
[1734540685966,0.14304835,104050.0,104040.0,0.58833799]
[1734540686158,0.14304835,104050.0,104040.0,0.49866456]
[1734540686359,0.14404835,104050.0,104040.0,0.49866456]
[1734540687062,0.19211335,104050.0,104040.0,0.49766456]
[1734540687463,0.19211335,104050.0,104040.0,0.40899113]
[1734540687668,0.049065,104050.0,104040.0,0.40899113]
[1734540688662,0.19211335,104050.0,104040.0,0.40899113]
[1734540688870,0.19211335,104050.0,104040.0,0.04819113]
[1734540689069,0.19211335,104050.0,104040.0,0.40899113]
[1734540689777,0.19211335,104050.0,104040.0,0.04819113]
[1734540690071,0.19211335,104050.0,104040.0,0.40899113]
[1734540690869,0.14404835,104050.0,104040.0,0.40899113]
[1734540691075,0.14404835,104050.0,104040.0,0.49766456]
[1734540691566,0.14404835,104050.0,104040.0,1.99766456]
[1734540692371,0.14304835,104050.0,104040.0,1.99866456]
[1734540692560,0.132761,104060.0,104040.0,1.99866456]
[1734540692758,0.132761,104060.0,104050.0,0.048065]